Cogmind - Beta 15 @@@ ROGUE MODE // 2025.10.21 @ 02:18:42 Player: NQH Result: Destroyed by G-47 Trooper with Particle Gun Performance ------------- Evolutions (2) 1000 Regions Visited (5) 1000 Robots Destroyed (71) 355 Value Destroyed (2749) 2749 Prototype IDs (0) 0 Alien Tech Used (0) 0 Bonus (2064) 2064 TOTAL SCORE: 7168 Bonus ------- Pacifist 200 High Alert Combat Kills 39 Follower Combat Kills 625 Entered Garrisons 200 Used RIF Installer 1000 Cogmind --------- Core Integrity 0/550 Matter 300/300 Energy 290/290 System Corruption 0% Temperature Cool (18) Movement Core (300) Ox5 Location -8/Materials Parts ------- > --- POWER (1) -------- Reinforced Deuterium Engine > --- PROPULSION (4) --- Flight Unit > --- UTILITY (4) ------ Relay Coupler [Swarmer] (22) Relay Coupler [Brawler] (11) Relay Coupler [Sentry] (4) Relay Coupler [Hunter] (4) > --- WEAPON (2) ------- Power Maul > --- INVENTORY (5) ---- Relay Coupler [Swarmer] (23) Relay Coupler [Swarmer] (23) Relay Coupler [Sentry] (21) Relay Coupler [Hunter] (18) Relay Coupler [Hunter] (14) Peak State ------------ > --- POWER ------------ Light Nuclear Core > --- PROPULSION ------- Carbon-fiber Leg Carbon-fiber Leg Flight Unit Flight Unit > --- UTILITY ---------- Relay Coupler [Swarmer] Relay Coupler [Grunt] Relay Coupler [Hunter] Relay Coupler [Hunter] > --- WEAPON ----------- Gauss Rifle Datajack > --- INVENTORY -------- Weight Redist. System Relay Coupler [Brawler] Heavy Assault Rifle Flak Cannon Datajack [Rating: 33] Favorites ----------- Power Light Ion Engine Engine Light Ion Engine Power Core Light Nuclear Core Propulsion Flight Unit Leg Carbon-fiber Leg Wheel Armored Wheel Hover Unit Hover Unit Flight Unit Flight Unit Utility Relay Coupler [Hunter] Device Seismic Detector Storage Small Storage Unit Processor Visual Processing Unit Hackware Relay Coupler [Hunter] Protection Light Armor Plating Weapon Datajack Ballistic Gun Light Assault Rifle Ballistic Cannon Flak Cannon Impact Weapon Hammer Slashing Weapon Katana Special Melee Weapon Datajack Build | -11 -10 -9 -8 -8 -8 ------- Run | Yrd Mat Mat Mat Gar Mat Slots Evolved 4 | . . 2 2 . . Power . | . . . . . . Propulsion 2 | . . . 2 . . Utility 2 | . . 2 . . . Weapon . | . . . . . . Parts Attached 97 | 6 3 30 14 35 9 Power 15 | 1 . 4 4 4 2 Engine 9 | 1 . 4 1 1 2 Core 6 | . . . 3 3 . Reactor . | . . . . . . Propulsion 30 | 2 2 6 7 9 4 Treads . | . . . . . . Leg 10 | . . 2 6 2 . Wheel 9 | 2 2 4 . . 1 Hover 1 | . . . 1 . . Flight 10 | . . . . 7 3 Utility 29 | 1 1 10 2 15 . Device 4 | . . 2 1 1 . Storage 2 | 1 . . 1 . . Processor 7 | . 1 5 . 1 . Hackware 13 | . . . . 13 . Protection 3 | . . 3 . . . Artifact . | . . . . . . Weapon 23 | 2 . 10 1 7 3 Energy Gun . | . . . . . . Energy Cannon . | . . . . . . Ballistic Gun 10 | 2 . 6 . 2 . Ballistic Cannon 6 | . . 4 . 2 . Launcher . | . . . . . . Special Weapon . | . . . . . . Impact Weapon 3 | . . . . 1 2 Slashing Weapon 1 | . . . 1 . . Piercing Weapon . | . . . . . . Special Melee Weapon 3 | . . . . 2 1 Unidentified Prototypes . | . . . . . . Parts Lost 26 | . . 6 6 6 8 Power 7 | . . 2 3 2 . Propulsion 11 | . . 2 . 2 7 Utility 4 | . . 2 1 1 . Weapon 4 | . . . 2 1 1 Highest Loss Streak 2 | . . 2 2 2 2 To Critical Strikes . | . . . . . . Average Backups 6 | . 6 7 7 4 5 Power . | . 1 . . . . Propulsion . | . 3 2 . . . Utility 2 | . 1 2 2 2 5 Weapon . | . . . 2 1 . Tool/Special . | . . . . . . Unused Backups 11 | . 3 1 1 1 5 Power . | . . . . . . Propulsion 3 | . 2 1 . . . Utility 6 | . . . 1 . 5 Weapon 1 | . . . . 1 . Tool/Special 1 | . 1 . . . . Average Slot Usage (%) 90 | . 95 93 92 86 87 Engine 6 | . 14 10 6 1 8 Core 3 | . . . 2 7 . Leg 6 | . . 1 34 3 . Wheel 8 | . 28 20 . . 6 Hover 1 | . . . . 2 . Flight 10 | . . . . 20 20 Device 5 | . . 9 5 4 . Storage 5 | . 14 11 9 . . Processor 8 | . 9 12 18 5 . Hackware 13 | . . . . 24 36 Protection 2 | . . 6 . . . Ballistic Gun 6 | . 28 9 . 5 . Ballistic Cannon 7 | . . 13 12 2 . Impact Weapon 1 | . . . . 1 9 Special Melee Weapon 4 | . . . . 8 7 Peak Build Rating 33 | 6 11 21 27 33 32 Average Rating 20 | 3 9 12 23 24 28 On Entrance 13 | . 6 11 19 15 28 Naked Turns . | . . . . . . Heaviest Build 27 | 12 12 22 27 17 18 Greatest Support 60 | 20 24 30 60 30 16 Greatest Overweight (x) 3 | . . 3 1 1 2 Average Overweight (x) . | . . . . . . Largest Inventory Capacity 8 | 8 8 8 8 8 5 Average Capacity 6 | 5 8 8 8 5 5 Most Carried 8 | 1 8 8 8 8 5 Average Carried 6 | . 6 7 7 4 5 Final Capacity 8 | 8 8 8 8 5 5 Final Carried 8 | 1 8 8 8 5 5 Class Distribution -------------------- 48% | Mutant 19% | Bothacker-Mutant 15% | Bothacker-Sprinter 9% | Skirmisher 7% | Scavenger-Mutant Dominant Class ---------------- Mutant | -10/Materials Mutant | -9/Materials Skirmisher | -8/Materials Bothacker-Sprinter | -8/Garrison Bothacker-Mutant | -8/Materials Resources | -11 -10 -9 -8 -8 -8 ----------- Run | Yrd Mat Mat Mat Gar Mat Matter Collected 2311 | 157 . 942 419 718 75 Remotely . | . . . . . . Salvage Created 2043 | . . 1150 470 305 118 Parts 122 | . . 84 24 8 6 Haulers Intercepted 1 | . . 1 . . . Recyclers Shooed 2 | . . 1 1 . . Parts Field Recycled . | . . . . . . Retrieved Matter . | . . . . . . Parts Self-Destructed . | . . . . . . Prevented . | . . . . . . Kills | -11 -10 -9 -8 -8 -8 ------- Run | Yrd Mat Mat Mat Gar Mat Combat Hostiles Destroyed 53 | . . 32 13 6 2 Melee 10 | . . . 8 . 2 Guns 13 | . . 11 . 2 . Cannons 30 | . . 21 5 4 . Classes Destroyed 11 | . . 11 . . . Worker 5 | . . 5 . . . Builder 3 | . . 2 . . 1 Tunneler 1 | . . 1 . . . Hauler 1 | . . 1 . . . Recycler 1 | . . 1 . . . Mechanic 1 | . . 1 . . . Operator 2 | . . 1 1 . . Watcher 4 | . . 4 . . . Swarmer 22 | . . 17 5 . . Grunt 19 | . . 7 7 4 1 Sentry 12 | . . 8 1 2 1 Best Kill Streak 9 | . . 9 5 2 2 Combat Bots Only 8 | . . 8 5 2 1 Max Kills in Single Turn 1 | . . 1 1 1 1 Gunslinging . | . . . . . . Exploded . | . . . . . . Melee 1 | . . . 1 . 1 Uniques/NPCs Destroyed . | . . . . . . Combat | -11 -10 -9 -8 -8 -8 -------- Run | Yrd Mat Mat Mat Gar Mat Hostile Shots Fired 468 | . . 215 128 68 57 Missed 137 | . . 61 25 28 23 Hits 331 | . . 154 103 40 34 Melee 1 | . . . . 1 . Projectile 330 | . . 154 103 39 34 Critical Strikes 14 | . . 7 1 3 3 Damage Taken 4191 | . . 1717 1263 585 626 Core 898 | . . 339 156 168 235 Absorbed by Shields . | . . . . . . Core Remaining (%) 71 | 100 100 15 . . . Volleys Fired 206 | . . 134 13 59 . Largest 2 | . . 2 2 2 . Hottest 74 | . . 60 74 74 . Shots Fired 363 | . . 268 25 70 . Gun 177 | . . 131 . 46 . Cannon 186 | . . 137 25 24 . Launcher . | . . . . . . Special . | . . . . . . Kinetic 363 | . . 268 25 70 . Thermal . | . . . . . . Explosive . | . . . . . . Electromagnetic . | . . . . . . Robot Hit Streak 8 | . . 7 4 8 . Robot Miss Streak 11 | . . 6 11 6 . Penetration Max . | . . . . . . Secondary Targets 1 | . . 1 . . . Max Gunslinging Chain 1 | . . 1 . . . Shots Hit Robots 250 | . . 145 45 50 10 Core Hits 111 | . . 67 26 17 1 Critical Kills . | . . . . . . Critical Parts Destroyed 3 | . . 1 . . 2 Critical Strikes 8 | . . 4 2 . 2 Destroy 1 | . . 1 . . . Blast 3 | . . 3 . . . Smash 2 | . . . . . 2 Sever 2 | . . . 2 . . Melee Attacks 92 | . . . 35 38 19 Impact 23 | . . . . 9 14 Slashing 36 | . . . 35 1 . Piercing . | . . . . . . Sneak Attacks 6 | . . . 1 3 2 Combat Hostiles 2 | . . . . 2 . Follow-up Attacks . | . . . . . . Damage Inflicted 4129 | . . 2000 1057 695 377 Guns 898 | . . 786 . 112 . Cannons 1669 | . . 1214 150 305 . Explosions . | . . . . . . Melee 1488 | . . . 833 278 377 Ramming 74 | . . . 74 . . Kinetic 2567 | . . 2000 150 417 . Thermal . | . . . . . . Explosive . | . . . . . . Electromagnetic . | . . . . . . Impact 620 | . . . . 243 377 Slashing 868 | . . . 833 35 . Piercing . | . . . . . . Highest Corruption . | . . . . . . Average Corruption . | . . . . . . Corruption Purged . | . . . . . . Corruption Blocked . | . . . . . . Overload Shots . | . . . . . . Overflow Damage 283 | . . 2 . 50 231 Projectiles 2 | . . 2 . . . Explosions . | . . . . . . Melee 281 | . . . . 50 231 Knockbacks 20 | . . 8 8 2 2 Impact 2 | . . . . . 2 Kinetic 16 | . . 7 7 2 . Secondary 2 | . . 1 1 . . Self-Inflicted Damage . | . . . . . . Shots . | . . . . . . Rammed . | . . . . . . Targets Rammed 19 | . . . 19 . . Kicked 19 | . . . 19 . . Crushed . | . . . . . . Highest Temperature 62 | . . 62 4 48 6 Average Temperature 16 | . . 17 3 15 5 Received Heat Transfer 1368 | . . 450 477 153 288 Siege Activations . | . . . . . . Martial Activations . | . . . . . . Shielding Activations . | . . . . . . Robots Disrupted . | . . . . . . Combat Hostiles . | . . . . . . Robots Corrupted 3 | . . . . 2 1 Combat Hostiles 2 | . . . . 2 . Parts Fried 3 | . . . . 1 2 Impact Corruptions 9 | . . . . 3 6 Robots Melted . | . . . . . . Combat Hostiles . | . . . . . . Parts Melted . | . . . . . . Heat Transferred . | . . . . . . Parts Sabotaged . | . . . . . . Parts Stolen . | . . . . . . Parts Stripped . | . . . . . . Power Chain Reactions . | . . . . . . Alert | -11 -10 -9 -8 -8 -8 ------- Run | Yrd Mat Mat Mat Gar Mat Maximum Alert Level 3 | . . 2 1 3 2 Low Security (%) 18 | 100 100 23 35 1 . Level 1 47 | . . 70 64 40 . Level 2 19 | . . 6 . 22 100 Level 3 14 | . . . . 35 . Level 4 . | . . . . . . Level 5 . | . . . . . . High Security . | . . . . . . Max Security . | . . . . . . Peak Influence 1089 | . . 430 262 1089 583 Initial 530 | . . . 157 159 530 Average 376 | . . 261 206 550 504 Influence Increases 2911 | . . 928 435 1170 378 Destroy 0b10 Robot/C 1540 | . . 640 260 440 200 Destroy 0b10 Robot/NC 100 | . . 80 5 10 5 Destroy Leader 280 | . . 160 50 10 60 Allied During Kill 90 | . . . . 40 50 Trap Triggered on 0b10 10 | . . . . 10 . Successful Hack 30 | . . . . 30 . Disable Machine 60 | . . 15 . . 45 Anti-Garrison Action 500 | . . . . 500 . Destroy Structure 61 | . . 3 . 55 3 Partial Spotted 75 | . . . . 60 15 Lose Combat Pursuer 165 | . . 30 120 15 . Influence Decreases 2413 | . . 553 564 327 969 Entered New Map 864 | . . . 218 87 559 Time Decay 969 | . . 493 286 . 190 Lost Part 260 | . . 60 60 60 80 Lost Ally 320 | . . . . 180 140 Squads Dispatched 7 | . . 2 2 . 3 Investigation 1 | . . . . . 1 Extermination . | . . . . . . Reinforcement 6 | . . 2 2 . 2 Assault . | . . . . . . Garrison . | . . . . . . Intercept . | . . . . . . Searches Triggered . | . . . . . . Construction Impeded . | . . . . . . Haulers Reinforced . | . . . . . . Active Scanning Responses . | . . . . . . Cargo Convoy Interrupts . | . . . . . . Stealth | -11 -10 -9 -8 -8 -8 --------- Run | Yrd Mat Mat Mat Gar Mat Distress Signals 5 | . . 3 2 . . Communications Jammed . | . . . . . . Distress Signals . | . . . . . . Times Spotted 121 | . 1 45 21 34 20 Peak Tracking Total 6 | . 1 5 5 4 6 Tactical Retreats 6 | . . 2 3 1 . Traps | -11 -10 -9 -8 -8 -8 ------- Run | Yrd Mat Mat Mat Gar Mat Traps Triggered 3 | . . . . 2 1 Indirectly . | . . . . . . Trap Hack Attempts 189 | . . . . 189 . Triggered . | . . . . . . Disarmed 7 | . . . . 7 . Reprogrammed 11 | . . . . 11 . Reused 1 | . . . . 1 . Traps Extracted . | . . . . . . Installed . | . . . . . . Triggered 1 | . . . . 1 . Machines | -11 -10 -9 -8 -8 -8 ---------- Run | Yrd Mat Mat Mat Gar Mat Machines Disabled 10 | . . 1 . 6 3 Max in Single Turn 1 | . . 1 . 1 1 Garrison Relay 5 | . . . . 5 . Machines Repaired . | . . . . . . Machines Dismantled . | . . . . . . Machines Sabotaged . | . . . . . . Overloaded Fab Kills . | . . . . . . Hacking | -11 -10 -9 -8 -8 -8 --------- Run | Yrd Mat Mat Mat Gar Mat Machines Accessed 11 | . . 2 1 4 4 Terminals 8 | . . . . 4 4 Fabricators . | . . . . . . Repair Stations . | . . . . . . Recycling Units 2 | . . 2 . . . Scanalyzers . | . . . . . . Garrison Access 1 | . . . 1 . . Total Hacks 22 | . . 4 1 7 10 Successful 8 | . . 3 1 2 2 Failed 14 | . . 1 . 5 8 Catastrophic 5 | . . . . 2 3 Database Lockouts . | . . . . . . Manual 8 | . . . . . 8 Terminals 17 | . . . . 7 10 Fabricators . | . . . . . . Repair Stations . | . . . . . . Recycling Units 4 | . . 4 . . . Scanalyzers . | . . . . . . Garrison Access 1 | . . . 1 . . Terminal Hacks 4 | . . . . 2 2 Record 2 | . . . . . 2 Garrison Registry 1 | . . . . 1 . Security Stations 1 | . . . . 1 . Fabricator Hacks . | . . . . . . Repair Station Hacks . | . . . . . . Recycling Unit Hacks 3 | . . 3 . . . Process 2 | . . 2 . . . Retrieve Matter 1 | . . 1 . . . Scanalyzer . | . . . . . . Garrison Access Hacks 1 | . . . 1 . . Unlock Access 1 | . . . 1 . . Unauthorized Hacks . | . . . . . . Terminals . | . . . . . . Fabricators . | . . . . . . Repair Stations . | . . . . . . Recycling Units . | . . . . . . Scanalyzers . | . . . . . . Garrison Access . | . . . . . . Data Cores Recovered . | . . . . . . Used . | . . . . . . Hacking Detections 6 | . . 1 . 2 3 Full Trace Events 1 | . . . . 1 . Feedback Events . | . . . . . . Feedback Blocked . | . . . . . . Robot Schematics Acquired . | . . . . . . Robots Built . | . . . . . . Authchips . | . . . . . . Time . | . . . . . . Total Robot Build Rating . | . . . . . . Part Schematics Acquired . | . . . . . . Parts Built . | . . . . . . Authchips . | . . . . . . Time . | . . . . . . Total Part Build Rating . | . . . . . . Parts Repaired . | . . . . . . Time . | . . . . . . Parts Recycled . | . . . . . . Recycled Matter 29 | . . 29 . . . Retrieved Matter 29 | . . 29 . . . Retrieved Components . | . . . . . . Parts Scanalyzed . | . . . . . . Part Schematics Acquired . | . . . . . . Parts Damaged . | . . . . . . Bothacking | -11 -10 -9 -8 -8 -8 ------------ Run | Yrd Mat Mat Mat Gar Mat Used RIF Installer 2 | . . . . 2 . Structural Interface 1 | . . . . 1 . Robots Hacked 18 | . . . . 16 2 Non-combat . | . . . . . . Combat 18 | . . . . 16 2 Robot Hacks Applied 18 | . . . . 16 2 find_shortcuts 1 | . . . . 1 . scatter_targeting 2 | . . . . 2 . streamctrl_high 2 | . . . . 2 . formatsys_high 13 | . . . . 11 2 Relay Couplers Released 18 | . . . . 18 . Machine Destruction 18 | . . . . 18 . Attached 13 | . . . . 13 . Fabnet Peak Effective % . | . . . . . . Robots Rewired . | . . . . . . Allies Hacked . | . . . . . . Hacks Repelled . | . . . . . . Allies | -11 -10 -9 -8 -8 -8 -------- Run | Yrd Mat Mat Mat Gar Mat Total Allies 17 | . . . . 15 2 Largest Group 5 | . . . . 5 5 Highest-Rated Group 76 | . . . . 74 76 Highest-Rated Ally 31 | . . . . 31 21 Total Orders . | . . . . . . Ally Attacks 120 | . . . . 87 33 Total Damage 2131 | . . . . 1484 647 Kills 24 | . . . . 16 8 Allies Corrupted . | . . . . . . Allies Melted 2 | . . . . 2 . Intel | -11 -10 -9 -8 -8 -8 ------- Run | Yrd Mat Mat Mat Gar Mat Active Infowar (turns) 2673 | . 157 1430 630 456 . Optics 2596 | . 157 1430 630 379 . Sensors 440 | . . 54 386 . . Seismic 1190 | . . 1190 . . . T.N.C. 75 | . . 75 . . . Machine Analysis 123 | . . 4 . 119 . Robot Analysis Total . | . . . . . . Derelict Logs Recovered . | . . . . . . Drone Launches . | . . . . . . Drone Recoveries . | . . . . . . Exploration | -11 -10 -9 -8 -8 -8 ------------- Run | Yrd Mat Mat Mat Gar Mat Turns Passed 4587 | 66 212 1430 630 1859 390 Spaces Moved 4133 | 71 221 1036 355 2096 354 Core 48 | 2 . 1 . 45 . Treads . | . . . . . . Legs 579 | . . 57 347 175 . Wheels 1406 | 69 221 978 . . 138 Hover 488 | . . . 8 480 . Flight 1612 | . . . . 1396 216 Fastest Speed 31 | 50 80 85 60 31 31 Average Speed 72 | 79 88 91 118 51 88 Slowest Speed 205 | 80 90 200 190 137 205 Overloaded Moves . | . . . . . . Propulsion Burnouts . | . . . . . . Robots Hopped . | . . . . . . Potential Cave-ins . | . . . . . . Cave-ins Triggered . | . . . . . . Exploration Rate (%) 37 | 4 28 55 22 90 24 Regions Visited 5 Branch Regions . Pre-discovered Areas . | . . . . . . Known Exits Taken 2 | . . 1 1 . . Unknown Exits Taken 2 | 1 1 . . . . Scrap Searched . | . . . . . . Spaces Dug 2 | . . . . . 2 Terrain Destroyed 2 | . . . . . 2 Melee 2 | . . . . . 2 Projectile . | . . . . . . AOE . | . . . . . . Terrain Rammed . | . . . . . . Walls Destroyed . | . . . . . . Machines Disabled . | . . . . . . Actions | -11 -10 -9 -8 -8 -8 --------- Run | Yrd Mat Mat Mat Gar Mat Total 5250 | 77 241 1274 480 2775 403 Wait 354 | . 3 39 29 269 14 Move 4127 | 70 220 1035 354 2094 354 Hop . | . . . . . . Pick Up 36 | 1 10 9 5 11 . Fast Attach 61 | 6 1 16 8 23 7 Attach 18 | . . 6 4 8 . Detach 17 | . . 6 1 10 . Swap 29 | . 2 10 3 12 2 Drop 58 | . 5 19 9 20 5 Fire 206 | . . 134 13 59 . Melee 92 | . . . 35 38 19 Ram . | . . . . . . Kick 19 | . . . 19 . . Crush . | . . . . . . Escape Stasis 29 | . . . . 29 . Rewire 15 | . . . . 13 2 Trap 189 | . . . . 189 . Miscellaneous . | . . . . . . Route ------- -11/Scrapyard -10/Materials (discovered 2 exits: *Mat / [*Min]) -9/Materials (discovered 3 exits: *Mat x2 / [*Min]) -8/Materials -8/Garrison (discovered 3 exits: *Mat x3) -8/Materials History --------- Turn | Location | Event 5 | -11/Scrapyard | Discovered new exit (range 16) 67 | -11/Scrapyard | Entered Materials 76 | -10/Materials | Discovered new exit (range 4) 255 | -10/Materials | Discovered new exit (range 4) 279 | -10/Materials | Entered another Materials area 279 | -9/Materials | Evolved 2 slots: Utility x2 327 | -9/Materials | Build established: Mutant 417 | -9/Materials | Destroyed 8 combat bots 789 | -9/Materials | Discovered new exit (range 16) 843 | -9/Materials | Discovered new exit (range 18) 1027 | -9/Materials | Discovered new exit (range 3) 1339 | -9/Materials | Core integrity fell below 50% 1536 | -9/Materials | Core integrity fell below 20% 1706 | -9/Materials | Identified exit to Materials 1709 | -9/Materials | Entered another Materials area 1709 | -8/Materials | Evolved 2 slots: Propulsion x2 1929 | -8/Materials | Build established: Skirmisher 2338 | -8/Materials | Identified exit to Garrison 2339 | -8/Materials | Entered Garrison 2381 | -8/Garrison | Rescued a captive Derelict 2382 | -8/Garrison | Rescued a captive Derelict 2465 | -8/Garrison | Installed Relay Interface Framework 2635 | -8/Garrison | Build established: Mutant 2689 | -8/Garrison | Garrison Relay disabled 2716 | -8/Garrison | Garrison Relay disabled 2761 | -8/Garrison | Triggered checkpoint 3035 | -8/Garrison | Triggered checkpoint 3139 | -8/Garrison | Triggered checkpoint 3143 | -8/Garrison | Core integrity fell below 50% 3167 | -8/Garrison | Triggered checkpoint 3281 | -8/Garrison | Triggered checkpoint 3295 | -8/Garrison | Discovered new exit (range 60) 3295 | -8/Garrison | Discovered new exit (range 55) 3295 | -8/Garrison | Discovered new exit (range 9) 3388 | -8/Garrison | Build established: Bothacker-Mutant 3463 | -8/Garrison | Triggered checkpoint 3511 | -8/Garrison | Garrison Relay disabled 3713 | -8/Garrison | Expanded RIF knowledge: Structural Interface 3727 | -8/Garrison | Triggered checkpoint 3765 | -8/Garrison | Garrison Relay disabled 3769 | -8/Garrison | Learned Materials security intel 3826 | -8/Garrison | Build established: Bothacker-Sprinter 4010 | -8/Garrison | Garrison Relay disabled 4198 | -8/Garrison | Entered Materials 4198 | -8/Materials | Accompanied by 5 allies 4266 | -8/Materials | Lost 3 allies 4526 | -8/Materials | Core integrity fell below 20% 4552 | -8/Materials | Lost 4 allies 4588 | -8/Materials | Destroyed by G-47 Trooper with Particle Gun Last Messages --------------- 04571_ Destroyed Terrain Scanner. 04571_ Destroyed Welding Torch. 04571_ Destroyed Lgt. Ion Engine. 04571_ U-05 Engineer system corrupted by crushing effect. 04572_ U-05 Engineer system terminally corrupted. 04572_ Terrain Scan Processor fried. 04572_ Wheel fried. 04574_ Sneak attack on A-02 Transporter. 04574_ A-02 Transporter suffers critical hit (Smash). 04574_ Destroyed Lgt. Treads. 04574_ A-02 Transporter system corrupted by crushing effect. 04582_ Destroyed Lgt. Nuclear Core. 04582_ G-47 Trooper system corrupted by crushing effect. 04582_ G-47 Trooper knocked back. 04584_ Flight Unit destroyed. 04586_ G-47 Trooper knocked back. 04588_ Com. Wheel destroyed. Map ----- +----------------------------------------------------+ | ?????????????????????????????????????????????????? | | ?????????????????????????????????????????????????? | | ?????????????????????????????????????????????????? | | #####????????????????????????????????????????????? | | #???????????????????????????????????????????? | | #???????????????????????????????????????????? | | #???????????????????????????????????????????? | | ??????????????????? ????????????????????????? | | = ??????????????????? ????????????????????????? | | #% #??????????????????? ????????????????????????? | | #! #??????????????????? #???????????????????????? | | #= #??????????????????? #??????????????????????? | | #%! #??????????????????? ??????????????????????? | | #[* ###########????????? ??????????????????????? | | # ## #????????? g ??????????????????????? | | # ## #????????? #??????????????????????? | | [ #*= #?????????# #??????????????????????? | | ==! #%!! #?????????#u#??????????????????????? | | =%!%/*!= #?????????# #??????????????????????? | | %*!%# != #?????????# #??????????????????????? | | ![%[%#! #?????????# #??????????????????????? | | ###### #?????????# #??????????????????????? | | % #?# #?????????# #??????????????????????? | | #?#######/##?????????#%#??????????????????????? | | #???????# #??????????#[#??????????????????????? | | " #??????## ############@###########????????????? | | #??????# %= ????????? | | #??????# gg ????????? | | ####??????# a ????????? | | ??????????# ##########################?????????? | | ??????????# #??????????????????????????????????? | | ??????????# #??????????????????????????????????? | | ??????????# +??????????????????????????????????? | | ??????????# #??????????????????????????????????? | | ??????????+ #??????????????????????????????????? | | ??????????# #??????????????????????????????????? | | ??????????# #??????????????????????????????????? | | ??????????# #??????????????????????????????????? | | ??????????# #??????????????????????????????????? | | ??????????# #################+######+####### # | | ??????????# # # | | ####??????# # # # | | ! #??????# # !#! # | | #??????# # ==%% #######T########## # | | """#??????# # !*%#[ #?????###????????????? | | """#??????# # !!![# ##########???????????? | | """#??????# # % !! [# # ! #???????????? | | #??+##?# %/ !! # # """ #???????????? | | ##+## ### ########### # """ #???????????? | | ! #?????????# # """ #???????????? | +----------------------------------------------------+ Best States ------------- Heat Dissipation 45 Energy Generation 18 Energy Capacity 290 Matter Stores 351 Matter Capacity 450 Sight Range 18 Robot Scan Range 14 Terrain Scan Density 85 Additional Mass Support 6 Armor Coverage 225 Evasion (%) 63 Relay Coupler Types 4 Relay Coupler Value 67 Item Schematics ----------------- None Robot Schematics ------------------ None Fabricated ------------ Nothing Repaired ---------- Nothing Alien Tech Used ----------------- None Achievements -------------- None Challenges ------------ None Game ------ Seed GodImpulseSheargun Manual? 0 Play Time 00:58:04 Cumulative 35.4 hours Start 2025.10.15 @ 21:53:18 End 2025.10.21 @ 02:18:42 Sessions 1 Manual Loads 0 Difficulty Rogue Special Mode None Game No. 138 Rogue 138 Adventurer 0 Explorer 0 Win Type - Total 0 Types 0/0/0/0/0/0/0/0/0/0 Lore% 11 Gallery% 32 Achievement% 30 Wizard Run 0 Options --------- Layout 1 ASCII 0 Keyboard 1 Movement Vi Keybinds 0 Fullscreen 1 Font 16/SmallcapsGlow Map View 55x38 Zoom Use 0% Tactical HUD 1 Map Filters NONE Filters NONE Steam 1 RUN: 2982de6c-052b-426b-a88f-e0bcb2d3b6af